[Event "IIFL Wealth  4th Mumbai Junior U-13"]
[Site "Mumbai"]
[Date "2019.01.02"]
[Round "4"]
[White "Adreeja Sinha"]
[Black "Makwana Devam"]
[Result "1-0"]
[ECO "B56"]
[WhiteElo "1366"]
[BlackElo "1617"]
[Annotator "NA"]
[PlyCount "67"]
[EventDate "2018.12.30"]
[EventType "swiss"]
[EventCountry "IND"]
[SourceTitle "playchess.com"]
[Source "ChessBase"]
[SourceQuality "1"]
[TimeControl "40/5400+30:1800+30"]

1. e4 {[%emt 0:00:00]} c5 {[%emt 0:00:00]} 2. Nf3 {[%emt 0:00:00]} d6 {[%emt 0:00:00]} 3. d4 {[%emt 0:00:00]} cxd4 {[%emt 0:00:00]} 4. Nxd4 {[%emt 0:00:06]} Nf6 {[%emt 0:00:35]} 5. Nc3 {[%emt 0:00:08]} Nc6 {[%emt 0:00:04]} 6. f3 e6 {[%emt 0:00:23]} 7. Be3 {[%emt 0:01:42]} Be7 {[%emt 0:00:17]} 8. Be2 {[%emt 0:02:12]} a6 {[%emt 0:00:13]} 9. O-O {[%emt 0:02:50]} Qc7 10. f4 {[%emt 0:02:37]} O-O {[%emt 0:04:29]} 11. Kh1 {[%emt 0:03:20]} Bd7 {[%emt 0:05:44]} 12. Qe1 {[%emt 0:06:34]} b5 {[%emt 0:03:54]} 13. a3 {[%emt 0:01:55]} Rac8 {[%emt 0:05:33]} 14. f5 {[%emt 0:07:32]} Ne5 {[%emt 0:09:19]} 15. Qg3 {[%emt 0:03:50]} Kh8 {[%emt 0:02:31]} 16. fxe6 {[%emt 0:03:53]} fxe6 {[%emt 0:02:09]} 17. Rf4 {[%emt 0:08:29]} Nc4 {[%emt 0:03:29]} 18. Bxc4 {[%emt 0:00:50]} e5 {[%emt 0:04:41]} 19. Rxf6 {[%emt 0:02:31]} Bxf6 {[%emt 0:03:17]} 20. Ne6 {[%emt 0:04:08]} Qxc4 {[%emt 0:03:45]} 21. Nxf8 {[%emt 0:01:05]} Rxf8 {[%emt 0:00:08]} 22. Rd1 {[%emt 0:02:29]} b4 {[%emt 0:01:43]} 23. axb4 {[%emt 0:00:27]} Qxb4 {[%emt 0:01:04]} 24. Bc1 {[%emt 0:01:01]} Bc6 {[%emt 0:06:02]} 25. Qd3 {[%emt 0:03:48]} Be7 {[%emt 0:04:28]} 26. h3 {[%emt 0:03:14]} h6 {[%emt 0:04:15]} 27. Re1 {[%emt 0:07:00]} Bb5 {[%emt 0:02:12]} 28. Qg3 {[%emt 0:03:31]} a5 {[%emt 0:05:15]} 29. Nd5 {[%emt 0:03:29]} Qc4 {[%emt 0:02:54]} 30. Nxe7 {[%emt 0:01:16]} Rf1+ {[%emt 0:00:03]} 31. Kh2 {[%emt 0:01:36]} Rxe1 {[%emt 0:00:42]} 32. Qxe1 {[%emt 0:01:39]} Qxc2 {[%emt 0:00:08]} 33. Qxa5 {[%emt 0:01:09]} Qxc1 {[%emt 0:00:21]} 34. Qd8+ {[%emt 0:00:10]} 1-0

[Event "IIFL Wealth  4th Mumbai Junior U-13"]
[Site "Mumbai"]
[Date "2019.01.02"]
[Round "4"]
[White "Shreyas Seshadri Nallore"]
[Black "Kadam Rishi R"]
[Result "0-1"]
[ECO "C44"]
[WhiteElo "1343"]
[BlackElo "1604"]
[Annotator "NA RC"]
[PlyCount "100"]
[EventDate "2018.12.30"]
[EventType "swiss"]
[EventCountry "IND"]
[SourceTitle "playchess.com"]
[Source "ChessBase"]
[SourceQuality "1"]
[TimeControl "40/5400+30:1800+30"]

1. e4 {[%emt 0:00:00]} e5 {[%emt 0:00:00]} 2. Nf3 {[%emt 0:00:00]} Nc6 {[%emt 0:00:00]} 3. d4 {[%emt 0:00:00]} exd4 {[%emt 0:00:21]} 4. Nxd4 {[%emt 0:00:10]} Nf6 {[%emt 0:00:11]} 5. Nc3 {[%emt 0:00:11]} Bb4 {[%emt 0:00:17]} 6. Nxc6 {[%emt 0:00:10]} bxc6 {[%emt 0:00:06]} 7. Bd3 {[%emt 0:00:05]} O-O {[%emt 0:00:56]} 8. O-O {[%emt 0:00:16]} d5 {[%emt 0:02:12]} 9. exd5 {[%emt 0:02:47]} cxd5 {[%emt 0:01:07]} 10. Bg5 {[%emt 0:01:19]} c6 {[%emt 0:01:01]} 11. Qf3 {[%emt 0:07:46]} Be7 {[%emt 0:02:16]} 12. Rfe1 {[%emt 0:03:19]} h6 {[%emt 0:11:16]} 13. Bh4 {[%emt 0:07:26]} Re8 {[%emt 0:11:29]} 14. h3 {[%emt 0:15:38]} Be6 {[%emt 0:18:15]} 15. Ne2 {[%emt 0:13:26]} Nd7 {[%emt 0:28:47]} 16. Bxe7 {[%emt 0:10:08]} Qxe7 {[%emt 0:00:12]} 17. Ng3 {[%emt 0:03:27]} Qd6 {[%emt 0:01:41]} 18. Nf5 {[%emt 0:10:19]} Bxf5 {[%emt 0:00:12]} 19. Qxf5 {[%emt 0:01:30]} Nf6 {[%emt 0:00:13]} 20. c3 {[%emt 0:02:13]} Rab8 {[%emt 0:02:50]} 21. b3 {[%emt 0:05:07]} Re6 {[%emt 0:01:57]} 22. Re2 {[%emt 0:04:57]} Rbe8 {[%emt 0:04:07]} 23. Rae1 {[%emt 0:00:49]} c5 {[%emt 0:00:58]} 24. Bb5 {[%emt 0:02:45]} R8e7 {[%emt 0:00:29]} 25. Bd3 {[%emt 0:01:17]} Qc6 {[%emt 0:02:10]} 26. Re5 {[%emt 0:01:00]} Qe8 {[%emt 0:07:36]} 27. f4 {[%emt 0:02:27]} Qd7 {[%emt 0:01:16]} 28. c4 {[%emt 0:03:04]} g6 {[%emt 0:01:06]} 29. Qxf6 {[%emt 0:01:23]} Rxf6 {[%emt 0:00:05]} 30. Rxe7 {[%emt 0:00:04]} Qd6 {[%emt 0:00:07]} 31. g3 {[%emt 0:01:25]} g5 {[%emt 0:00:36]} 32. cxd5 {[%emt 0:01:01]} gxf4 {[%emt 0:00:10]} 33. Re8+ {[%emt 0:00:27]} Kg7 {[%emt 0:00:05]} 34. R8e5 {[%emt 0:00:31]} c4 {[%emt 0:01:28]} 35. Bxc4 {[%emt 0:00:26]} Qc5+ {[%emt 0:00:12]} 36. Kg2 {[%emt 0:00:10]} fxg3 {[%emt 0:01:36]} 37. R1e3 {[%emt 0:00:36]} Rg6 {[%emt 0:00:29]} 38. Rxg3 {[%emt 0:00:37]} Rxg3+ {[%emt 0:00:07]} 39. Kxg3 {[%emt 0:00:10]} Qd6 {[%emt 0:00:07]} 40. Kf4 {[%emt 0:00:00]} Kf6 {[%emt 0:00:00]} 41. Ke3 {[%emt 0:00:13]} Kxe5 {[%emt 0:00:14]} 42. Kd3 {[%emt 0:00:03]} f5 {[%emt 0:00:09]} 43. Ke3 {[%emt 0:00:03]} f4+ {[%emt 0:00:08]} 44. Kf3 {[%emt 0:00:02]} Qg6 {[%emt 0:01:05]} 45. Bf1 {[%emt 0:00:19]} Qg3+ {[%emt 0:00:07]} 46. Ke2 {[%emt 0:00:02]} f3+ {[%emt 0:00:09]} 47. Ke3 {[%emt 0:00:01]} Qe1+ {[%emt 0:00:11]} 48. Kxf3 {[%emt 0:00:02]} Qxf1+ {[%emt 0:00:06]} 49. Kg4 {[%emt 0:00:02]} Qg2+ {[%emt 0:00:14]} 50. Kh4 {[%emt 0:00:05]} Qg5# {[%emt 0:00:05]} 0-1

[Event "IIFL Wealth  4th Mumbai Junior U-13"]
[Site "Mumbai"]
[Date "2019.01.02"]
[Round "4"]
[White "Tikam Aradhya"]
[Black "Arushi Srichandan"]
[Result "1-0"]
[ECO "C53"]
[WhiteElo "1332"]
[BlackElo "1100"]
[Annotator "NA"]
[PlyCount "85"]
[EventDate "2018.12.30"]
[EventType "swiss"]
[EventCountry "IND"]
[SourceTitle "playchess.com"]
[Source "ChessBase"]
[SourceQuality "1"]
[TimeControl "40/5400+30:1800+30"]

1. Nf3 {[%emt 0:00:00]} e5 {[%emt 0:03:11]} 2. e4 {[%emt 0:00:00]} Nc6 {[%emt 0:00:30]} 3. Bc4 {[%emt 0:00:00]} Bc5 {[%emt 0:00:53]} 4. c3 {[%emt 0:00:00]} Qe7 {[%emt 0:00:45]} 5. O-O {[%emt 0:00:16]} Nf6 {[%emt 0:00:24]} 6. d4 {[%emt 0:00:20]} Bb6 {[%emt 0:00:17]} 7. Re1 {[%emt 0:00:54]} O-O {[%emt 0:00:23]} 8. Bg5 {[%emt 0:04:30]} h6 {[%emt 0:04:04]} 9. Bh4 {[%emt 0:01:33]} d6 {[%emt 0:01:42]} 10. d5 {[%emt 0:00:34]} Nb8 {[%emt 0:00:26]} 11. a4 {[%emt 0:02:53]} a6 12. Na3 {[%emt 0:03:10]} Bg4 {[%emt 0:06:11]} 13. Nc2 {[%emt 0:01:06]} Nbd7 {[%emt 0:00:41]} 14. Ne3 {[%emt 0:01:17]} Bxe3 {[%emt 0:00:34]} 15. Rxe3 {[%emt 0:00:25]} g5 16. Bg3 {[%emt 0:00:28]} Kh7 {[%emt 0:06:21]} 17. Be2 {[%emt 0:00:20]} Rg8 {[%emt 0:03:24]} 18. h3 {[%emt 0:04:42]} Bh5 {[%emt 0:00:24]} 19. Nh2 {[%emt 0:00:22]} Bxe2 {[%emt 0:07:30]} 20. Qxe2 {[%emt 0:00:29]} h5 {[%emt 0:01:44]} 21. f3 {[%emt 0:03:21]} Rg6 {[%emt 0:04:55]} 22. Nf1 {[%emt 0:03:37]} Rag8 {[%emt 0:01:53]} 23. Kf2 {[%emt 0:00:28]} h4 {[%emt 0:01:22]} 24. Bh2 {[%emt 0:00:19]} Nh5 {[%emt 0:03:46]} 25. g3 {[%emt 0:04:23]} hxg3+ {[%emt 0:00:31]} 26. Nxg3 {[%emt 0:02:13]} Nxg3 {[%emt 0:02:02]} 27. Bxg3 {[%emt 0:00:35]} Rh6 {[%emt 0:00:31]} 28. Rh1 {[%emt 0:00:26]} Nf6 {[%emt 0:00:33]} 29. Ke1 {[%emt 0:11:48]} g4 {[%emt 0:02:06]} 30. h4 {[%emt 0:05:30]} gxf3 {[%emt 0:03:17]} 31. Rxf3 {[%emt 0:01:34]} Qd7 {[%emt 0:00:29]} 32. Rhf1 {[%emt 0:01:18]} Qe7 {[%emt 0:01:04]} 33. Qf2 {[%emt 0:00:10]} Kg7 {[%emt 0:13:33]} 34. h5 {[%emt 0:02:27]} Kh7 {[%emt 0:02:26]} 35. Bh4 {[%emt 0:00:47]} Nxe4 {[%emt 0:01:23]} 36. Rxf7+ {[%emt 0:02:17]} Rg7 37. Qf5+ {[%emt 0:00:06]} Kg8 {[%emt 0:01:13]} 38. Bxe7 {[%emt 0:00:13]} Nf6 {[%emt 0:00:06]} 39. Rxg7+ {[%emt 0:00:07]} Kxg7 {[%emt 0:00:08]} 40. Bxf6+ {[%emt 0:00:00]} Kg8 {[%emt 0:00:00]} 41. Qg5+ {[%emt 0:00:22]} Kf8 {[%emt 0:00:13]} 42. Qg7+ {[%emt 0:00:08]} Ke8 {[%emt 0:00:05]} 43. Qe7# {[%emt 0:00:12]} 1-0

[Event "IIFL Wealth  4th Mumbai Junior U-13"]
[Site "Mumbai"]
[Date "2019.01.02"]
[Round "4"]
[White "Jain, Kushagra"]
[Black "Adireddy Tarun"]
[Result "0-1"]
[ECO "A01"]
[WhiteElo "1323"]
[BlackElo "1553"]
[Annotator "NA"]
[PlyCount "64"]
[EventDate "2018.12.30"]
[EventType "swiss"]
[EventCountry "IND"]
[SourceTitle "playchess.com"]
[Source "ChessBase"]
[SourceQuality "1"]
[TimeControl "40/5400+30:1800+30"]

1. b3 d5 2. Bb2 Bg4 3. g3 c5 4. Bg2 Nc6 5. Nf3 Nf6 6. O-O e6 7. d3 Bd6 8. Nbd2 e5 9. e4 d4 10. h3 Be6 11. Ne1 Qd7 12. Kh2 g5 13. Qe2 h5 14. c3 b5 15. cxd4 cxd4 16. Nc2 Ke7 17. Rac1 Rag8 18. Na3 a6 19. Rfd1 Bb8 20. Nab1 Ke8 21. Ba3 b4 22. Bb2 Ne7 23. Nc4 Bc7 24. a3 Ng6 25. Rc2 h4 26. g4 Nf4 27. Qf1 Bxg4 28. hxg4 Qxg4 29. Ne3 h3 30. Bh1 Qg2+ 31. Bxg2 hxg2+ 32. Kg3 Rh3# 0-1

[Event "IIFL Wealth  4th Mumbai Junior U-13"]
[Site "Mumbai"]
[Date "2019.01.02"]
[Round "4"]
[White "Mitank Maru"]
[Black "Bajaj Prakhar"]
[Result "0-1"]
[ECO "A35"]
[WhiteElo "1312"]
[BlackElo "1551"]
[Annotator "NA"]
[PlyCount "120"]
[EventDate "2018.12.30"]
[EventType "swiss"]
[EventCountry "IND"]
[SourceTitle "playchess.com"]
[Source "ChessBase"]
[SourceQuality "1"]
[TimeControl "40/5400+30:1800+30"]

1. c4 {[%emt 0:00:00]} c5 {[%emt 0:00:00]} 2. Nc3 {[%emt 0:00:21]} Nc6 {[%emt 0:00:00]} 3. e3 {[%emt 0:02:24]} Nf6 {[%emt 0:02:07]} 4. d4 {[%emt 0:01:00]} cxd4 {[%emt 0:00:27]} 5. exd4 {[%emt 0:00:15]} d5 {[%emt 0:00:14]} 6. Nf3 {[%emt 0:00:18]} e6 {[%emt 0:19:56]} 7. Bg5 {[%emt 0:07:30]} Be7 {[%emt 0:00:22]} 8. Be2 {[%emt 0:05:41]} O-O {[%emt 0:04:38]} 9. O-O {[%emt 0:04:27]} b6 {[%emt 0:07:40]} 10. Rc1 {[%emt 0:07:34]} Bb7 {[%emt 0:00:11]} 11. Ne5 {[%emt 0:05:35]} dxc4 {[%emt 0:23:41]} 12. Nxc6 {[%emt 0:03:54]} Bxc6 {[%emt 0:01:03]} 13. Bxc4 {[%emt 0:03:07]} h6 {[%emt 0:07:19]} 14. Bf4 {[%emt 0:06:57]} Nd5 {[%emt 0:05:20]} 15. Nxd5 {[%emt 0:04:11]} Bxd5 {[%emt 0:00:15]} 16. Ba6 {[%emt 0:08:11]} Bd6 {[%emt 0:10:16]} 17. Qg4 {[%emt 0:07:38]} Bxf4 {[%emt 0:02:30]} 18. Qxf4 {[%emt 0:00:05]} Bxa2 {[%emt 0:02:19]} 19. Bb7 {[%emt 0:12:39]} Rb8 {[%emt 0:01:14]} 20. Rc7 {[%emt 0:02:45]} Bc4 {[%emt 0:04:00]} 21. Rc1 {[%emt 0:01:41]} b5 {[%emt 0:00:34]} 22. Bc6 {[%emt 0:04:53]} a5 {[%emt 0:01:22]} 23. Rd7 {[%emt 0:03:23]} Qg5 {[%emt 0:00:36]} 24. Qxg5 {[%emt 0:02:23]} hxg5 {[%emt 0:00:01]} 25. Rc3 {[%emt 0:01:41]} a4 {[%emt 0:00:36]} 26. f3 {[%emt 0:01:16]} Rfc8 {[%emt 0:00:34]} 27. Be4 {[%emt 0:02:12]} Rd8 {[%emt 0:00:38]} 28. Rxd8+ {[%emt 0:01:12]} Rxd8 {[%emt 0:00:01]} 29. Bc2 {[%emt 0:00:27]} Rxd4 {[%emt 0:00:07]} 30. Kf2 {[%emt 0:00:20]} b4 {[%emt 0:02:32]} 31. Rxc4 {[%emt 0:00:22]} Rxc4 {[%emt 0:00:05]} 32. Bxa4 {[%emt 0:00:10]} b3 {[%emt 0:00:19]} 33. Bxb3 {[%emt 0:00:07]} Rb4 {[%emt 0:00:03]} 34. Bd1 {[%emt 0:00:25]} Rxb2+ {[%emt 0:00:04]} 35. Kg3 {[%emt 0:00:54]} f5 {[%emt 0:00:08]} 36. h3 {[%emt 0:00:20]} Kf7 {[%emt 0:00:08]} 37. Ba4 {[%emt 0:00:20]} Kf6 {[%emt 0:00:06]} 38. Bc6 {[%emt 0:00:30]} e5 {[%emt 0:00:14]} 39. Bd5 {[%emt 0:00:45]} Re2 {[%emt 0:00:16]} 40. Bc4 {[%emt 0:00:00]} Rd2 {[%emt 0:00:00]} 41. Bf1 {[%emt 0:04:25]} f4+ {[%emt 0:00:40]} 42. Kh2 {[%emt 0:00:47]} Kf5 {[%emt 0:00:20]} 43. Kg1 {[%emt 0:00:39]} e4 {[%emt 0:01:00]} 44. fxe4+ {[%emt 0:02:42]} Kxe4 {[%emt 0:00:04]} 45. Ba6 Ke3 {[%emt 0:00:17]} 46. Bb7 {[%emt 0:01:11]} Rd1+ {[%emt 0:00:29]} 47. Kh2 Kf2 {[%emt 0:00:22]} 48. Bf3 {[%emt 0:00:33]} Rd3 {[%emt 0:00:38]} 49. Be4 {[%emt 0:00:24]} Rg3 {[%emt 0:00:18]} 50. Bc6 {[%emt 0:01:02]} g4 {[%emt 0:00:13]} 51. hxg4 {[%emt 0:00:24]} Rxg4 {[%emt 0:00:12]} 52. Kh3 {[%emt 0:00:36]} Rg3+ {[%emt 0:00:02]} 53. Kh2 {[%emt 0:01:14]} Rg6 {[%emt 0:00:16]} 54. Bd7 {[%emt 0:00:53]} Rh6+ {[%emt 0:00:06]} 55. Bh3 {[%emt 0:00:09]} g5 {[%emt 0:00:05]} 56. Kh1 {[%emt 0:00:21]} g4 {[%emt 0:00:04]} 57. Kh2 {[%emt 0:00:46]} g3+ {[%emt 0:00:40]} 58. Kh1 {[%emt 0:00:08]} Rxh3+ {[%emt 0:00:02]} 59. gxh3 g2+ {[%emt 0:00:03]} 60. Kh2 {[%emt 0:01:01]} g1=Q# 0-1

[Event "IIFL Wealth  4th Mumbai Junior U-13"]
[Site "Mumbai"]
[Date "2019.01.02"]
[Round "4"]
[White "Wahba, David George"]
[Black "Mahi Amit Doshi"]
[Result "0-1"]
[ECO "B13"]
[WhiteElo "1295"]
[BlackElo "1551"]
[Annotator "NA"]
[PlyCount "66"]
[EventDate "2018.12.30"]
[EventType "swiss"]
[EventCountry "IND"]
[SourceTitle "playchess.com"]
[Source "ChessBase"]
[SourceQuality "1"]
[TimeControl "40/5400+30:1800+30"]

1. e4 {[%emt 0:00:00]} c6 {[%emt 0:00:00]} 2. d4 {[%emt 0:00:00]} d5 {[%emt 0:00:00]} 3. exd5 {[%emt 0:00:00]} cxd5 {[%emt 0:00:00]} 4. c4 {[%emt 0:00:02]} Nf6 {[%emt 0:00:52]} 5. Nf3 {[%emt 0:05:22]} Nc6 {[%emt 0:00:01]} 6. Nc3 {[%emt 0:08:16]} Bg4 {[%emt 0:06:13]} 7. Be3 {[%emt 0:02:58]} e6 {[%emt 0:04:23]} 8. h3 {[%emt 0:01:17]} Bh5 {[%emt 0:01:21]} 9. Bd3 {[%emt 0:09:55]} Be7 {[%emt 0:07:51]} 10. O-O {[%emt 0:02:20]} O-O {[%emt 0:00:34]} 11. cxd5 {[%emt 0:00:33]} Nxd5 {[%emt 0:00:26]} 12. Be2 {[%emt 0:00:46]} Bxf3 {[%emt 0:07:36]} 13. Bxf3 {[%emt 0:00:32]} Nxe3 14. fxe3 {[%emt 0:00:19]} Rc8 {[%emt 0:10:41]} 15. Rc1 {[%emt 0:01:05]} Qb6 {[%emt 0:01:20]} 16. Qb3 {[%emt 0:00:19]} Qxb3 {[%emt 0:07:34]} 17. axb3 {[%emt 0:00:14]} Na5 {[%emt 0:04:06]} 18. Ne2 {[%emt 0:01:39]} b6 {[%emt 0:03:29]} 19. Rxc8 {[%emt 0:02:22]} Rxc8 {[%emt 0:00:03]} 20. Be4 {[%emt 0:00:17]} Nxb3 {[%emt 0:02:06]} 21. Bd3 {[%emt 0:00:13]} g6 {[%emt 0:05:00]} 22. Nc3 {[%emt 0:00:54]} Bg5 {[%emt 0:02:50]} 23. Rf3 {[%emt 0:01:03]} Nd2 {[%emt 0:04:39]} 24. Rg3 {[%emt 0:00:10]} Bh4 {[%emt 0:00:15]} 25. Rg4 {[%emt 0:00:19]} g5 {[%emt 0:00:34]} 26. Ne4 {[%emt 0:00:27]} Rc1+ {[%emt 0:01:11]} 27. Kh2 {[%emt 0:00:15]} f5 {[%emt 0:03:48]} 28. Nxd2 fxg4 {[%emt 0:00:24]} 29. g3 {[%emt 0:00:58]} Rd1 {[%emt 0:00:48]} 30. Ne4 {[%emt 0:00:17]} Rxd3 {[%emt 0:00:30]} 31. gxh4 g3+ {[%emt 0:01:33]} 32. Nxg3 {[%emt 0:00:24]} gxh4 {[%emt 0:00:25]} 33. Nf1 Rd2+ 0-1

[Event "IIFL Wealth  4th Mumbai Junior U-13"]
[Site "Mumbai"]
[Date "2019.01.02"]
[Round "4"]
[White "Srivatsan Karthikeyan"]
[Black "Jain Adi"]
[Result "0-1"]
[ECO "C59"]
[WhiteElo "1288"]
[BlackElo "1545"]
[Annotator "NA"]
[PlyCount "52"]
[EventDate "2018.12.30"]
[EventType "swiss"]
[EventCountry "IND"]
[SourceTitle "playchess.com"]
[Source "ChessBase"]
[SourceQuality "1"]
[TimeControl "40/5400+30:1800+30"]

1. e4 {[%emt 0:00:00]} e5 {[%emt 0:00:00]} 2. Nf3 {[%emt 0:00:18]} Nc6 {[%emt 0:00:00]} 3. Bc4 {[%emt 0:00:06]} Nf6 {[%emt 0:01:42]} 4. Ng5 {[%emt 0:01:19]} d5 {[%emt 0:00:08]} 5. exd5 {[%emt 0:00:09]} Na5 {[%emt 0:00:05]} 6. Bb5+ {[%emt 0:00:34]} c6 {[%emt 0:00:23]} 7. dxc6 {[%emt 0:00:10]} bxc6 {[%emt 0:00:04]} 8. Be2 {[%emt 0:00:08]} h6 {[%emt 0:00:44]} 9. Nf3 {[%emt 0:00:14]} e4 {[%emt 0:00:43]} 10. Ne5 {[%emt 0:00:45]} Bd6 {[%emt 0:04:07]} 11. d4 {[%emt 0:04:58]} exd3 {[%emt 0:13:11]} 12. Nxd3 {[%emt 0:02:29]} Qc7 {[%emt 0:00:47]} 13. h3 {[%emt 0:03:43]} c5 {[%emt 0:07:59]} 14. Bd2 {[%emt 0:03:55]} Rb8 {[%emt 0:12:15]} 15. c4 {[%emt 0:10:30]} O-O {[%emt 0:06:04]} 16. Qa4 {[%emt 0:07:02]} Nc6 {[%emt 0:02:27]} 17. O-O {[%emt 0:02:11]} Nd4 {[%emt 0:00:31]} 18. Qd1 {[%emt 0:08:17]} Re8 {[%emt 0:02:22]} 19. Be3 {[%emt 0:00:07]} Nf5 {[%emt 0:05:19]} 20. Bd2 {[%emt 0:00:39]} Ne4 {[%emt 0:01:10]} 21. Nc3 {[%emt 0:05:02]} Bh2+ {[%emt 0:19:51]} 22. Kh1 {[%emt 0:00:52]} Nxf2+ {[%emt 0:13:31]} 23. Rxf2 {[%emt 0:00:25]} Ng3+ {[%emt 0:00:17]} 24. Kxh2 {[%emt 0:00:39]} Nf1+ {[%emt 0:00:11]} 25. Kg1 {[%emt 0:00:18]} Qh2+ {[%emt 0:00:05]} 26. Kxf1 {[%emt 0:00:05]} Qh1# 0-1

[Event "IIFL Wealth  4th Mumbai Junior U-13"]
[Site "Mumbai"]
[Date "2019.01.02"]
[Round "4"]
[White "Tawade Arnav"]
[Black "Abhinav Dubey"]
[Result "1/2-1/2"]
[ECO "D34"]
[WhiteElo "1285"]
[BlackElo "1497"]
[Annotator "NA RC"]
[PlyCount "33"]
[EventDate "2018.12.30"]
[EventType "swiss"]
[EventCountry "IND"]
[SourceTitle "playchess.com"]
[Source "ChessBase"]
[SourceQuality "1"]
[TimeControl "40/5400+30:1800+30"]

1. d4 {[%emt 0:00:00]} d5 {[%emt 0:00:00]} 2. c4 {[%emt 0:00:00]} e6 {[%emt 0:00:00]} 3. Nc3 {[%emt 0:00:00]} c5 {[%emt 0:00:00]} 4. cxd5 {[%emt 0:00:09]} exd5 {[%emt 0:00:00]} 5. g3 {[%emt 0:00:00]} Nc6 {[%emt 0:00:00]} 6. Bg2 {[%emt 0:00:07]} Nf6 {[%emt 0:00:00]} 7. Nf3 {[%emt 0:00:30]} Be7 {[%emt 0:00:00]} 8. O-O {[%emt 0:00:10]} O-O {[%emt 0:00:05]} 9. dxc5 {[%emt 0:00:23]} Bxc5 {[%emt 0:00:09]} 10. Na4 {[%emt 0:00:43]} Be7 {[%emt 0:00:22]} 11. Be3 {[%emt 0:00:11]} Bf5 {[%emt 0:05:26]} 12. Rc1 {[%emt 0:05:34]} Ne4 {[%emt 0:07:12]} 13. Nc5 {[%emt 0:07:42]} Bxc5 {[%emt 0:05:58]} 14. Bxc5 {[%emt 0:00:31]} Re8 {[%emt 0:00:24]} 15. Re1 {[%emt 0:10:57]} Rc8 {[%emt 0:04:52]} 16. Bh3 {[%emt 0:28:41]} Bg6 {[%emt 0:08:16]} 17. Qa4 {[%emt 0:07:25]} 1/2-1/2

[Event "IIFL Wealth  4th Mumbai Junior U-13"]
[Site "Mumbai"]
[Date "2019.01.02"]
[Round "4"]
[White "Keshav Padmanabhan"]
[Black "Sureka Akshat"]
[Result "1/2-1/2"]
[ECO "B23"]
[WhiteElo "1272"]
[BlackElo "1078"]
[Annotator "NA RC"]
[PlyCount "109"]
[EventDate "2018.12.30"]
[EventType "swiss"]
[EventCountry "IND"]
[SourceTitle "playchess.com"]
[Source "ChessBase"]
[SourceQuality "1"]
[TimeControl "40/5400+30:1800+30"]

1. e4 {[%emt 0:00:00]} c5 {[%emt 0:02:25]} 2. Nc3 {[%emt 0:00:00]} d6 {[%emt 0:00:29]} 3. g3 {[%emt 0:00:00]} Nf6 {[%emt 0:00:34]} 4. Bg2 {[%emt 0:00:36]} a6 {[%emt 0:00:17]} 5. d3 {[%emt 0:00:06]} e6 {[%emt 0:00:30]} 6. Be3 {[%emt 0:00:15]} Be7 {[%emt 0:00:37]} 7. f4 {[%emt 0:00:12]} Nbd7 {[%emt 0:00:30]} 8. h3 {[%emt 0:00:11]} O-O {[%emt 0:01:08]} 9. Nf3 {[%emt 0:01:30]} b5 {[%emt 0:00:41]} 10. O-O {[%emt 0:02:05]} Bb7 {[%emt 0:01:26]} 11. Kh2 {[%emt 0:00:52]} Re8 {[%emt 0:02:00]} 12. Qd2 {[%emt 0:00:53]} Bf8 {[%emt 0:00:55]} 13. a3 {[%emt 0:20:08]} g6 {[%emt 0:02:01]} 14. Rae1 {[%emt 0:12:05]} Bg7 {[%emt 0:00:52]} 15. f5 {[%emt 0:05:39]} exf5 {[%emt 0:03:09]} 16. exf5 {[%emt 0:03:06]} d5 {[%emt 0:00:44]} 17. fxg6 {[%emt 0:09:59]} d4 {[%emt 0:01:50]} 18. gxf7+ {[%emt 0:00:11]} Kxf7 {[%emt 0:00:22]} 19. Ng5+ {[%emt 0:00:09]} Kg8 {[%emt 0:00:35]} 20. Bxb7 {[%emt 0:01:28]} dxe3 {[%emt 0:00:10]} 21. Rxe3 {[%emt 0:00:54]} Ra7 {[%emt 0:00:35]} 22. Rxe8+ {[%emt 0:01:35]} Qxe8 {[%emt 0:00:14]} 23. Bg2 {[%emt 0:00:27]} h6 {[%emt 0:02:22]} 24. Nge4 {[%emt 0:01:19]} Qe5 {[%emt 0:04:11]} 25. Nxf6+ {[%emt 0:07:21]} Nxf6 {[%emt 0:00:23]} 26. Qf4 {[%emt 0:01:54]} Qxf4 {[%emt 0:03:05]} 27. Rxf4 {[%emt 0:00:43]} Rd7 {[%emt 0:01:08]} 28. Rf5 {[%emt 0:02:20]} c4 {[%emt 0:00:45]} 29. dxc4 {[%emt 0:07:49]} bxc4 {[%emt 0:00:15]} 30. Rc5 {[%emt 0:00:32]} Rd2 {[%emt 0:01:05]} 31. Rxc4 {[%emt 0:04:24]} Rxc2 {[%emt 0:02:52]} 32. Rb4 {[%emt 0:00:56]} Nd7 {[%emt 0:01:48]} 33. Rb3 {[%emt 0:05:40]} Nc5 {[%emt 0:02:25]} 34. Rb8+ {[%emt 0:00:08]} Kh7 {[%emt 0:00:10]} 35. Rc8 {[%emt 0:00:06]} Nd3 {[%emt 0:00:19]} 36. Re8 {[%emt 0:03:35]} Ne5 {[%emt 0:02:54]} 37. g4 {[%emt 0:04:18]} Rxb2 {[%emt 0:01:23]} 38. Nd5 {[%emt 0:03:27]} Ng6 {[%emt 0:01:41]} 39. Nb4 {[%emt 0:01:55]} Nh4 {[%emt 0:01:26]} 40. Kg3 {[%emt 0:00:00]} Nxg2 {[%emt 0:00:00]} 41. Nxa6 {[%emt 0:07:30]} Bf6 {[%emt 0:01:45]} 42. Rc8 Bh4+ {[%emt 0:01:40]} 43. Kf3 {[%emt 0:04:08]} Ne1+ {[%emt 0:00:50]} 44. Ke4 {[%emt 0:03:36]} Rb3 {[%emt 0:01:57]} 45. Rc7+ {[%emt 0:00:57]} Kg8 {[%emt 0:00:12]} 46. Rc8+ {[%emt 0:02:32]} Kf7 {[%emt 0:00:41]} 47. Rc7+ {[%emt 0:01:26]} Ke8 {[%emt 0:01:28]} 48. Rc8+ {[%emt 0:02:07]} Ke7 {[%emt 0:01:54]} 49. Rc7+ {[%emt 0:01:09]} Kd8 {[%emt 0:00:36]} 50. Rh7 {[%emt 0:01:56]} Be7 {[%emt 0:01:39]} 51. Nb4 {[%emt 0:03:05]} Bxb4 {[%emt 0:01:03]} 52. axb4 {[%emt 0:00:02]} Rxb4+ {[%emt 0:00:31]} 53. Kf5 {[%emt 0:00:42]} Rb5+ {[%emt 0:00:17]} 54. Kg6 {[%emt 0:01:22]} Rb6+ {[%emt 0:00:14]} 55. Kg7 {[%emt 0:00:25]} 1/2-1/2